fUSD/lending_fUSD_20250716
["ID","MTS","AMOUNT","RATE_DAILY","PERIOD"]
[372552723,1752681043567,-151.0,0.00020685,2]
[372552725,1752681043576,-151.0,0.00020685,2]
[372552727,1752681043586,-154.258196,0.00020685,2]
[372552729,1752681043596,-151.0,0.00020685,2]
[372552731,1752681043606,-151.0,0.00020685,2]
[372552733,1752681043615,-151.0,0.00020685,2]
[372552735,1752681043625,-266.399794,0.00020685,2]
[372552737,1752681043634,-492.415324,0.00020685,2]
[372552739,1752681043644,-492.415324,0.00020685,2]
[372552741,1752681043653,-151.0,0.00020685,2]
[372552743,1752681043663,-151.0,0.00020685,2]
[372552745,1752681043672,-169.257944,0.00020685,2]
[372552747,1752681043682,-151.0,0.00020685,2]
[372552749,1752681043691,-169.257944,0.00020685,2]
[372552751,1752681043702,-151.0,0.00020685,2]
[372552753,1752681043711,-151.0,0.00020685,2]
[372552755,1752681043721,-251.349721,0.00020685,2]
[372552757,1752681043731,-151.0,0.00020685,2]
[372552759,1752681043740,-151.0,0.00020685,2]
[372552761,1752681043749,-251.349721,0.00020685,2]
[372552763,1752681043759,-220.360717,0.00020685,2]
[372552765,1752681043768,-220.360717,0.00020685,2]
[372552767,1752681043778,-151.375249,0.00020685,2]
[372552769,1752681043787,-152.129671,0.00020685,2]
[372552771,1752681043797,-151.24422,0.00020685,2]
[372552773,1752681043807,-151.24422,0.00020685,2]
[372552775,1752681043816,-151.0,0.00020685,2]
[372552777,1752681043825,-446.624718,0.00020685,2]
[372552778,1752681043835,-446.624718,0.00020685,2]
[372552780,1752681043844,-151.0,0.00020685,2]
[372552782,1752681043854,-151.0,0.00020685,2]
[372552784,1752681043863,-151.0,0.00020685,2]
[372552787,1752681043873,-151.0,0.00020685,2]
[372552788,1752681043883,-151.0,0.00020685,2]
[372552790,1752681043893,-151.0,0.00020685,2]
[372552792,1752681043902,-754.748766,0.00020685,2]
[372552794,1752681043912,-754.748766,0.00020685,2]
[372552797,1752681043922,-168.263207,0.00020685,2]
[372552798,1752681043931,-168.263207,0.00020685,2]
[372552800,1752681043940,-169.597772,0.00020685,2]
[372552802,1752681043950,-151.0,0.00020685,2]
[372552803,1752681043959,-169.597772,0.00020685,2]
[372552805,1752681043968,-151.0,0.00020685,2]
[372552807,1752681043977,-631.391047,0.00020685,2]
[372552809,1752681043987,-631.391047,0.00020685,2]
[372552811,1752681043997,-151.0,0.00020685,2]
[372552813,1752681044013,-151.0,0.00020685,2]
[372552815,1752681044023,-151.0,0.00020685,2]
[372552817,1752681044032,-1123.338898,0.00020685,2]
[372552819,1752681044042,-1123.338898,0.00020685,2]
[372552821,1752681044052,-259.892244,0.00020685,2]
[372552823,1752681044062,-157.592559,0.00020685,2]
[372552825,1752681044071,-259.892244,0.00020685,2]
[372552827,1752681044081,-157.592559,0.00020685,2]
[372552830,1752681044099,-151.858535,0.00020685,2]
[372552832,1752681044112,-196.756282,0.00020685,2]
[372552834,1752681044125,-151.0,0.00020685,2]
[372552836,1752681044135,-196.756282,0.00020685,2]
[372552838,1752681044145,-151.0,0.00020685,2]
[372552840,1752681044155,-151.0,0.00020685,2]
[372552842,1752681044164,-1157.935032,0.00020685,2]
[372552844,1752681044174,-221.559025,0.00020685,2]
[372552845,1752681044183,-221.559025,0.00020685,2]
[372552847,1752681044193,-1157.935032,0.00020685,2]
[372552849,1752681044203,-151.0,0.00020685,2]
[372552851,1752681044212,-151.0,0.00020685,2]
[372552853,1752681044223,-1412.317142,0.00020685,2]
[372552855,1752681044232,-1412.317142,0.00020685,2]
[372552858,1752681044243,-802.072043,0.00020685,2]
[372552859,1752681044252,-802.072043,0.00020685,2]
[372552861,1752681044262,-193.444552,0.00020685,2]
[372552863,1752681044272,-394.813699,0.00020685,2]
[372552865,1752681044281,-193.444552,0.00020685,2]
[372552867,1752681044290,-394.813699,0.00020685,2]
[372552869,1752681044300,-151.0,0.00020685,2]
[372552871,1752681044311,-151.0,0.00020685,2]
[372552874,1752681044320,-151.0,0.00020685,2]
[372552876,1752681044331,-245.471675,0.00020685,2]
[372552877,1752681044340,-192.960343,0.00020685,2]
[372552880,1752681044350,-151.0,0.00020685,2]
[372552882,1752681044359,-151.0,0.00020685,2]
[372552884,1752681044369,-2267.142784,0.00020685,2]
[372552885,1752681044379,-2267.142784,0.00020685,2]
[372552887,1752681044389,-5402.927121,0.00020685,2]
[372552889,1752681044398,-154.011334,0.00020689,2]
[372552892,1752681044408,-154.011334,0.00020689,2]
[372552893,1752681044418,-151.0,0.00020689,2]
[372552895,1752681044428,-151.0,0.00020689,2]
[372552896,1752681044438,-151.0,0.00020689,2]
[372552897,1752681044448,-173.104101,0.00020689,2]
[372552898,1752681044459,-236.335291,0.00020689,2]
[372552900,1752681044469,-337.112323,0.00020689,2]
[372552902,1752681044479,-236.335291,0.00020689,2]
[372552904,1752681044488,-196.790662,0.00020689,2]
[372552906,1752681044499,-196.790662,0.00020689,2]
[372552908,1752681044508,-1278.128112,0.00020689,2]
[372552910,1752681044519,-151.0,0.00020689,2]
[372552912,1752681044529,-1278.128112,0.00020689,2]
[372552914,1752681044539,-676.455964,0.00020689,2]
[372552916,1752681044550,-151.0,0.00020689,2]
[372552917,1752681044560,-676.455964,0.00020689,2]
[372552918,1752681044569,-151.0,0.00020689,2]
[372552919,1752681044579,-151.0,0.00020689,2]
[372552920,1752681044588,-152.466143,0.00020689,2]
[372552921,1752681044598,-500.847244,0.00020689,2]
[372552922,1752681044607,-355.24956,0.00020689,2]
[372552923,1752681044617,-500.847244,0.00020689,2]
[372552924,1752681044626,-355.24956,0.00020689,2]
[372552925,1752681044636,-155.69252673,0.0002069,2]
[372552926,1752681044645,-151.0,0.00020691,2]
[372552927,1752681044655,-151.0,0.00020691,2]
[372552928,1752681044664,-151.0,0.00020691,2]
[372552929,1752681044674,-151.0,0.00020691,2]
[372552930,1752681044683,-5800.0,0.00020691,2]
[372552931,1752681044693,-151.0,0.00020692,2]
[372552932,1752681044704,-151.0,0.00020692,2]
[372552933,1752681044713,-150.0,0.00020694,2]
[372552934,1752681044722,-150.0,0.00020694,2]
[372552935,1752681044731,-466.0,0.00020694,2]
[372552936,1752681044740,-150.0,0.00020694,2]
[372552938,1752681044751,-150.0,0.00020694,2]
[372552940,1752681044761,-150.0,0.00020694,2]
[372552942,1752681044771,-150.0,0.00020694,2]
[372552944,1752681044781,-150.0,0.00020694,2]
[372552946,1752681044790,-516.0,0.00020694,2]
[372552948,1752681044800,-500.0,0.00020694,2]
[372552950,1752681044810,-150.0,0.00020694,2]
[372552952,1752681044819,-150.26069429,0.00020694,2]
[372552954,1752681044828,-500.0,0.00020694,2]
[372552956,1752681044838,-500.0,0.00020694,2]
[372552958,1752681044847,-500.0,0.00020694,2]
[372552960,1752681044859,-4053.0,0.00020694,2]
[372552962,1752681044868,-150.0,0.00020694,2]
[372552964,1752681044878,-150.0,0.00020694,2]
[372552966,1752681044888,-150.0,0.00020694,2]
[372552968,1752681044897,-500.0,0.00020694,2]
[372552970,1752681044907,-500.0,0.00020694,2]
[372552972,1752681044917,-2062.0,0.00020694,2]
[372552974,1752681044927,-150.0,0.00020694,2]
[372552976,1752681044936,-150.0,0.00020694,2]
[372552978,1752681044946,-150.0,0.00020694,2]
[372552980,1752681044956,-150.0,0.00020694,2]
[372552982,1752681044966,-500.0,0.00020694,2]
[372552983,1752681044976,-500.0,0.00020694,2]
[372552984,1752681044985,-500.0,0.00020694,2]
[372552985,1752681044996,-150.0,0.00020694,2]
[372552986,1752681045006,-500.0,0.00020694,2]
[372552987,1752681045020,-150.0,0.00020694,2]
[372552988,1752681045031,-1469.0,0.00020694,2]
[372552989,1752681045040,-500.0,0.00020694,2]
[372552990,1752681045051,-150.0,0.00020694,2]
[372552991,1752681045060,-150.0,0.00020694,2]
[372552992,1752681045070,-150.0,0.00020694,2]
[372552993,1752681045079,-473.74218997,0.00020696,2]
[372552994,1752681045090,-8292.5708717,0.00020697,2]
[372552995,1752681045100,-85774.1308243,0.00020699,2]
[372552996,1752681045109,-151.0,0.00020699,2]
[372552997,1752681045119,-151.0,0.00020699,2]
[372552998,1752681045129,-151.0,0.00020699,2]
[372552999,1752681045138,-754.748766,0.00020699,2]
[372553000,1752681045147,-754.748766,0.00020699,2]
[372553001,1752681045157,-168.263207,0.00020699,2]
[372553002,1752681045166,-168.263207,0.00020699,2]
[372553003,1752681045176,-174.933334,0.00020699,2]
[372553004,1752681045185,-151.0,0.00020699,2]
[372553005,1752681045194,-151.0,0.00020699,2]
[372553006,1752681045205,-259.892244,0.00020699,2]
[372553007,1752681045214,-259.892244,0.00020699,2]
[372553008,1752681045224,-157.592559,0.00020699,2]
[372553009,1752681045234,-157.592559,0.00020699,2]
[372553010,1752681045243,-151.0,0.00020699,2]
[372553011,1752681045252,-1157.935032,0.00020699,2]
[372553012,1752681045262,-221.559025,0.00020699,2]
[372553013,1752681045271,-221.559025,0.00020699,2]
[372553014,1752681045281,-1157.935032,0.00020699,2]
[372553015,1752681045291,-231.281776,0.00020699,2]
[372553016,1752681045301,-151.0,0.00020699,2]
[372553017,1752681045311,-1412.317142,0.00020699,2]
[372553018,1752681045320,-1412.317142,0.00020699,2]
[372553019,1752681045330,-802.072043,0.00020699,2]
[372553021,1752681045340,-802.072043,0.00020699,2]
[372553023,1752681045350,-193.444552,0.00020699,2]
[372553025,1752681045359,-394.813699,0.00020699,2]
[372553027,1752681045368,-193.444552,0.00020699,2]
[372553029,1752681045378,-394.813699,0.00020699,2]
[372553031,1752681045387,-151.0,0.00020699,2]
[372553033,1752681045397,-151.0,0.00020699,2]
[372553035,1752681045406,-151.0,0.00020699,2]
[372553037,1752681045416,-151.0,0.00020699,2]
[372553039,1752681045425,-221.656812,0.00020699,2]
[372553041,1752681045435,-2267.142784,0.00020699,2]
[372553043,1752681045445,-2267.142784,0.00020699,2]
[372553044,1752681045455,-5800.0,0.000207,2]
[372553045,1752681045464,-250.0,0.000207,2]
[372553046,1752681045474,-250.0,0.000207,2]
[372553047,1752681045483,-250.0,0.000207,2]
[372553048,1752681045492,-151.0,0.000207,2]
[372553049,1752681045502,-250.0,0.000207,2]
[372553050,1752681045511,-250.0,0.000207,2]
[372553051,1752681045520,-250.0,0.000207,2]
[372553052,1752681045530,-250.0,0.000207,2]
[372553053,1752681045539,-250.0,0.000207,2]
[372553054,1752681045549,-250.0,0.000207,2]
[372553055,1752681045558,-250.0,0.000207,2]
[372553056,1752681045568,-250.0,0.000207,2]
[372553057,1752681045577,-250.0,0.000207,2]
[372553058,1752681045587,-250.0,0.000207,2]
[372553059,1752681045597,-250.0,0.000207,2]
[372553060,1752681045607,-250.0,0.000207,2]
[372553061,1752681045621,-250.0,0.000207,2]
[372553062,1752681045631,-250.0,0.000207,2]
[372553063,1752681045641,-250.0,0.000207,2]
[372553064,1752681045650,-250.0,0.000207,2]
[372553065,1752681045660,-250.0,0.000207,2]
[372553066,1752681045669,-250.0,0.000207,2]
[372553067,1752681045679,-250.0,0.000207,2]
[372553068,1752681045689,-250.0,0.000207,2]
[372553069,1752681045698,-250.0,0.000207,2]
[372553070,1752681045711,-250.0,0.000207,2]
[372553071,1752681045720,-250.0,0.000207,2]
[372553072,1752681045730,-250.0,0.000207,2]
[372553073,1752681045740,-250.0,0.000207,2]
[372553074,1752681045750,-250.0,0.000207,2]
[372553075,1752681045759,-250.0,0.000207,2]
[372553076,1752681045770,-250.0,0.000207,2]
[372553077,1752681045780,-171.6,0.000207,2]
[372553078,1752681045790,-151.0,0.000207,2]
[372553079,1752681045800,-151.0,0.000207,2]
[372553080,1752681045810,-169.597772,0.000207,2]
[372553081,1752681045820,-169.597772,0.000207,2]
[372553082,1752681045830,-257.707825,0.000207,2]
[372553083,1752681045841,-1123.338898,0.000207,2]
[372553084,1752681045850,-1123.338898,0.000207,2]
[372553085,1752681045860,-196.756282,0.000207,2]
[372553086,1752681045870,-196.756282,0.000207,2]
[372553087,1752681045879,-1900.0,0.000207,7]
[372553088,1752681045890,-200.0,0.000207,7]
[372553089,1752681045899,-300.0,0.000207,7]
[372553090,1752681045909,-300.0,0.000207,7]
[372553091,1752681045919,-300.0,0.000207,7]
[372553092,1752681045929,-666.0,0.00020705,2]
[372553093,1752681045939,-666.0,0.00020705,2]
[372553094,1752681045949,-1089.5282362,0.00020705,5]
[372553095,1752681045960,-151.0,0.00020705,2]
[372553096,1752681046146,-151.0,0.00020705,2]
[372553097,1752681046161,-151.0,0.00020705,2]
[372553098,1752681046172,-214.561127,0.00020705,2]
[372553099,1752681046182,-151.0,0.00020705,2]
[372553100,1752681046193,-151.0,0.00020705,2]
[372553101,1752681046203,-155.242,0.00020705,2]
[372553102,1752681046214,-389.477804,0.00020705,2]
[372553103,1752681046224,-389.477804,0.00020705,2]
[372553104,1752681046234,-154.011334,0.00020705,2]
[372553105,1752681046244,-154.011334,0.00020705,2]
[372553106,1752681046253,-151.0,0.00020705,2]
[372553107,1752681046263,-151.0,0.00020705,2]
[372553108,1752681046273,-236.335291,0.00020705,2]
[372553109,1752681046282,-151.0,0.00020705,2]
[372553110,1752681046292,-337.112323,0.00020705,2]
[372553111,1752681046302,-337.112323,0.00020705,2]
[372553112,1752681046312,-151.0,0.00020705,2]
[372553113,1752681046322,-236.335291,0.00020705,2]
[372553114,1752681046332,-151.0,0.00020705,2]
[372553115,1752681046342,-266.13509,0.00020705,2]
[372553117,1752681046351,-196.790662,0.00020705,2]
[372553119,1752681046361,-151.0,0.00020705,2]
[372553121,1752681046371,-151.0,0.00020705,2]
[372553123,1752681046380,-151.0,0.00020705,2]
[372553124,1752681046390,-196.790662,0.00020705,2]
[372553125,1752681046399,-1278.128112,0.00020705,2]
[372553126,1752681046409,-151.0,0.00020705,2]
[372553127,1752681046418,-151.0,0.00020705,2]
[372553128,1752681046428,-1278.128112,0.00020705,2]
[372553129,1752681046438,-676.455964,0.00020705,2]
[372553130,1752681046448,-151.0,0.00020705,2]
[372553131,1752681046459,-151.0,0.00020705,2]
[372553132,1752681046468,-676.455964,0.00020705,2]
[372553133,1752681046478,-151.0,0.00020705,2]
[372553134,1752681046488,-262.949611,0.00020705,2]
[372553135,1752681046498,-151.0,0.00020705,2]
[372553136,1752681046507,-151.0,0.00020705,2]
[372553137,1752681046517,-151.0,0.00020705,2]
[372553138,1752681046528,-460.0,0.00020705,2]
[372553139,1752681046538,-500.847244,0.00020705,2]
[372553140,1752681046547,-151.0,0.00020705,2]
[372553141,1752681046557,-355.24956,0.00020705,2]
[372553142,1752681046567,-151.0,0.00020705,2]
[372553143,1752681046576,-500.847244,0.00020705,2]
[372553144,1752681046586,-355.24956,0.00020705,2]
[372553145,1752681046596,-492.415324,0.00020705,2]
[372553146,1752681046606,-492.415324,0.00020705,2]
[372553147,1752681046615,-151.0,0.00020705,2]
[372553148,1752681046625,-169.257944,0.00020705,2]
[372553149,1752681046635,-151.0,0.00020705,2]
[372553150,1752681046644,-169.257944,0.00020705,2]
[372553151,1752681046654,-151.0,0.00020705,2]
[372553152,1752681046664,-151.0,0.00020705,2]
[372553153,1752681046674,-251.349721,0.00020705,2]
[372553154,1752681046684,-151.0,0.00020705,2]
[372553155,1752681046694,-151.0,0.00020705,2]
[372553156,1752681046704,-251.349721,0.00020705,2]
[372553157,1752681046713,-220.360717,0.00020705,2]
[372553158,1752681046723,-220.360717,0.00020705,2]
[372553159,1752681046744,-151.24422,0.00020705,2]
[372553160,1752681046754,-151.24422,0.00020705,2]
[372553161,1752681046764,-151.0,0.00020705,2]
[372553162,1752681046774,-446.624718,0.00020705,2]
[372553163,1752681046784,-446.624718,0.00020705,2]
[372553164,1752681046794,-631.391047,0.00020705,2]
[372553165,1752681046804,-631.391047,0.00020705,2]
[372553166,1752681046814,-151.0,0.00020705,2]
[372553167,1752681046824,-269.690122,0.00020705,2]
[372553168,1752681046834,-300.0,0.00020705,2]
[372553169,1752681046844,-454.94,0.00020706,2]
[372553170,1752681046855,-5138749.24120858,0.00020706,2]
[372553171,1752681047670,-3500.0,0.00020706,2]
[372553172,1752681047684,-41201.33199301,0.00020706,2]
[372553173,1752681048724,-107250.40153482,0.00020706,2]
[372553174,1752681048737,-33106.57800618,0.00020706,2]
[372553175,1752681048748,-16309.50011518,0.00020706,2]
[372553176,1752681048886,-151.0,0.00020506,2]
[372553177,1752681048896,-1501.33501434,0.00020706,2]
[372553178,1752681048907,-2205.37736153,0.00020706,2]
[372553179,1752681048919,-9758.634,0.00020706,2]
[372553180,1752681048931,-332.13228803,0.00020706,2]
[372553181,1752681049663,-852.01905984,0.000203,2]
[372553182,1752681049673,-5000.0,0.000203,2]
[372553183,1752681049684,-852.01905979,0.00020361,2]
[372553184,1752681049695,-852.01905979,0.00020422,2]
[372553185,1752681049708,-852.01905979,0.00020484,2]
[372553186,1752681049718,-151.0,0.00020606,2]
[372553187,1752681049728,-151.0,0.00020685,2]
[372553188,1752681049738,-5402.927121,0.00020699,2]
[372553189,1752681049748,-90265.05394259,0.00020706,2]
[372553190,1752681050612,-151.0,0.000204,2]
[372553191,1752681050622,-289.61500007,0.00020545,2]
[372553192,1752681050635,-562.40405972,0.00020545,2]
[372553193,1752681050645,-852.01905979,0.00020606,2]
[372553194,1752681050655,-151.0,0.00020699,2]
[372553195,1752681050789,-1671.97688049,0.00020706,2]
[372553196,1752681051354,-759.7753001,0.00020706,2]
[372553197,1752681051366,-896.22596024,0.00020706,2]
[372553198,1752681051378,-606.33,0.00020706,2]
[372553203,1752681108573,161.97,0.00013699,2]
[372553214,1752681235048,1338.5692635,0.00023101,120]
[372553218,1752681306029,188.40676597,0.00023096,30]
[372553219,1752681332378,1000.0,6.8e-07,120]
[372553220,1752681344409,1000.0,6.8e-07,120]
[372553221,1752681357100,661.4307365,6.8e-07,120]
[372553222,1752681357125,338.5692635,6.8e-07,120]
[372553224,1752681375129,1000.0,6.8e-07,120]
[372553225,1752681388523,1000.0,6.8e-07,120]
[372553226,1752681406456,1000.0,6.8e-07,120]
[372553227,1752681422956,1000.0,6.8e-07,120]
[372553228,1752681437043,661.4307365,6.8e-07,120]
[372553229,1752681437067,338.5692635,6.8e-07,120]
[372553230,1752681451662,1000.0,6.8e-07,120]
[372553231,1752681464693,1000.0,6.8e-07,120]
[372553232,1752681479746,1000.0,6.8e-07,120]
[372553233,1752681493972,1000.0,6.8e-07,120]
[372553234,1752681511201,661.4307365,6.8e-07,120]
[372553235,1752681511232,338.5692635,6.8e-07,120]
[372553236,1752681526800,1000.0,6.8e-07,120]
[372553238,1752681541754,1000.0,6.8e-07,120]
[372553239,1752681558411,1000.0,6.8e-07,120]
[372553242,1752681572108,1000.0,6.8e-07,120]
[372553243,1752681590608,661.4307365,6.8e-07,120]
[372553244,1752681590631,338.5692635,6.8e-07,120]
[372553246,1752681605060,1000.0,6.8e-07,120]
[372553248,1752681617712,1000.0,6.8e-07,120]
[372553252,1752681634665,1000.0,6.8e-07,120]
[372553255,1752681651101,1000.0,6.8e-07,120]
[372553256,1752681664460,1000.0,6.8e-07,120]
[372553257,1752681674988,151.0,0.00013699,2]
[372553258,1752681675133,151.0,0.00013699,2]
[372553259,1752681677590,1000.0,6.8e-07,120]
[372553261,1752681680665,192.25687584,0.00013699,2]
[372553262,1752681683235,207.83033977,0.00013699,2]
[372553263,1752681689851,1000.0,6.8e-07,120]
[372553264,1752681702524,1000.0,6.8e-07,120]
[372553265,1752681715950,1000.0,6.8e-07,120]
[372553268,1752681738032,661.4307365,6.8e-07,120]
[372553269,1752681738058,338.5692635,6.8e-07,120]
[372553271,1752681750764,1000.0,6.8e-07,120]
[372553272,1752681763743,1000.0,6.8e-07,120]
[372553273,1752681776791,1000.0,6.8e-07,120]
[372553275,1752681792307,1000.0,6.8e-07,120]
[372553276,1752681805270,1000.0,6.8e-07,120]
[372553277,1752681818326,1000.0,6.8e-07,120]
[372553278,1752681832450,1000.0,6.8e-07,120]
[372553279,1752681845601,1000.0,6.8e-07,120]
[372553280,1752681858786,1000.0,6.8e-07,120]
[372553281,1752681871539,661.4307365,6.8e-07,120]
[372553282,1752681871565,338.5692635,6.8e-07,120]
[372553283,1752681884101,1000.0,6.8e-07,120]
[372553284,1752681897248,1000.0,6.8e-07,120]
[372553290,1752681922955,2067.2150575,0.000181,5]
[372553291,1752681922977,3437.7849425,0.000181,5]
[372553294,1752681983617,2128.79319,0.00022795,30]
[372553296,1752681995904,500.0,0.00018,2]
[372553297,1752682005305,500.0,0.00018,2]
[372553299,1752682013339,500.0,0.00018,2]
[372553301,1752682029340,5062.2150575,7.945e-05,2]
[372553302,1752682029364,2939.5331685,7.945e-05,2]
[372553304,1752682048211,1000.0,0.00018,2]
[372553306,1752682061441,1000.0,0.00018,2]
[372553310,1752682103437,495.24310014,0.00023,120]
[372553311,1752682115481,1001.244848,0.000181,2]
[372553313,1752682185377,171.37,0.00013699,2]
[372553333,1752682231807,-151.0,0.00018313,2]
[372553335,1752682231818,-1335.07399708,0.00018314,2]
[372553337,1752682231828,-250.0,0.00018414,2]
[372553338,1752682231838,-500.0,0.000185,2]
[372553340,1752682231848,-250.0,0.00018519,2]
[372553342,1752682231858,-150.0,0.00018616,2]
[372553343,1752682231868,-150.0,0.00018616,2]
[372553345,1752682231878,-150.0,0.00018616,2]
[372553347,1752682231888,-339.94574584,0.00018635,2]
[372553348,1752682231898,-185.54,0.0001883,2]
[372553350,1752682231908,-349.43,0.00019038,2]
[372553351,1752682231918,-176.97,0.00019178,2]
[372553353,1752682231927,-779.54256218,0.00019238,2]
[372553355,1752682231937,-409.78,0.00019238,2]
[372553357,1752682231947,-409.78,0.00019248,2]
[372553358,1752682231956,-409.78,0.00019258,2]
[372553360,1752682231966,-895.71,0.00019261,2]
[372553362,1752682231975,-1200.0,0.00019268,2]
[372553363,1752682231984,-409.78,0.00019269,2]
[372553365,1752682231997,-409.78,0.00019279,2]
[372553367,1752682232006,-409.78,0.00019289,2]
[372553368,1752682232017,-409.78,0.00019299,2]
[372553369,1752682232026,-409.78,0.00019309,2]
[372553370,1752682232036,-409.78,0.00019319,2]
[372553371,1752682232046,-409.78,0.00019329,2]
[372553372,1752682232056,-388.2216154,0.0001934,2]
[372553373,1752682232068,-21.5583846,0.0001934,2]
[372553374,1752682232078,-300.0,0.00019342,2]
[372553375,1752682232088,-641.66,0.00019344,2]
[372553376,1752682232098,-234.2816154,0.0001935,2]
[372553377,1752682232143,-175.4983846,0.0001935,2]
[372553378,1752682232153,-123.4816154,0.0001936,2]
[372553379,1752682232165,-286.2983846,0.0001936,2]
[372553380,1752682232174,-53.2956154,0.00019362,2]
[372553381,1752682232186,-97.7043846,0.00019362,2]
[372553382,1752682232196,-151.0,0.00019362,2]
[372553383,1752682232206,-151.0,0.00019362,2]
[372553384,1752682232216,-95.88761468,0.00019362,2]
[372553385,1752682232228,-55.11238532,0.00019362,2]
[372553386,1752682232237,-151.0,0.00019362,2]
[372553388,1752682232249,-151.0,0.00019362,2]
[372553389,1752682232259,-44.88760953,0.00019362,2]
[372553392,1752682232271,-106.11239047,0.00019362,2]
[372553394,1752682232283,-151.0,0.00019362,2]
[372553396,1752682232293,-151.0,0.00019362,2]
[372553398,1752682232303,-151.0,0.00019362,2]
[372553400,1752682232312,-151.0,0.00019362,2]
[372553402,1752682232322,-151.0,0.00019362,2]
[372553404,1752682232333,-151.0,0.00019362,2]
[372553406,1752682232347,-409.78,0.0001937,2]
[372553408,1752682232358,-505.58,0.00019372,2]
[372553410,1752682232367,-20006.82900193,0.00019373,2]
[372553412,1752682232380,-3893.17099807,0.00019373,2]
[372553414,1752682232389,-409.78,0.0001938,2]
[372553416,1752682232399,-444.38,0.00019387,2]
[372553418,1752682232409,-409.78,0.0001939,2]
[372553421,1752682232422,-409.78,0.000194,2]
[372553423,1752682232432,-923.90900194,0.00019408,2]
[372553425,1752682232444,-76.09099806,0.00019408,2]
[372553427,1752682232454,-409.78,0.00019411,2]
[372553429,1752682232464,-1753.7220744,0.00019413,2]
[372553431,1752682232474,-190.0,0.00019418,7]
[372553433,1752682232484,-409.78,0.00019421,2]
[372553435,1752682232496,-221.88,0.00019423,2]
[372553437,1752682232506,-1764.69124146,0.00019423,2]
[372553438,1752682232518,-840.64668844,0.00019423,2]
[372553439,1752682232530,-1400.97924053,0.00019423,2]
[372553440,1752682232567,-1798.5,0.00019423,2]
[372553441,1752682232579,-400.8925029,0.00019423,2]
[372553442,1752682232591,-602.32648222,0.00019423,2]
[372553443,1752682232603,-1065.92384445,0.00019423,2]
[372553444,1752682232613,-409.78,0.00019431,2]
[372553445,1752682232623,-137.28067814,0.00019459,2]
[372553446,1752682232635,-329.23020002,0.00019459,2]
[372553447,1752682232647,-296.23399932,0.00019459,2]
[372553448,1752682232659,-237.25512252,0.00019459,2]
[372553449,1752682232669,-188.86,0.00019506,2]
[372553450,1752682232679,-185.54,0.00019536,2]
[372553451,1752682232690,-514.0,0.0001957,2]
[372553452,1752682232700,-779.54256218,0.00019594,2]
[372553453,1752682232710,-4031.856,0.00019638,2]
[372553454,1752682232720,-160.0,0.00019638,2]
[372553455,1752682232730,-300.0,0.00019638,2]
[372553456,1752682232741,-300.0,0.00019638,2]
[372553457,1752682232752,-300.0,0.00019638,2]
[372553458,1752682232762,-207.4,0.00019638,2]
[372553459,1752682232772,-300.0,0.00019638,2]
[372553460,1752682232782,-300.0,0.00019638,2]
[372553461,1752682232801,-300.0,0.00019638,2]
[372553462,1752682232815,-200.0,0.00019638,2]
[372553463,1752682232825,-216.75,0.00019658,2]